[Event "18th Prague Open-A 2019"]
[Site "Prague"]
[Date "2019.01.13"]
[Round "4"]
[White "Vojta, Tomas"]
[Black "Kulkarni Bhakti"]
[Result "1-0"]
[ECO "A45"]
[WhiteElo "2351"]
[BlackElo "2303"]
[Annotator "NA"]
[PlyCount "89"]
[EventDate "2019.01.11"]
[EventType "swiss"]
[EventCountry "CZE"]
[SourceTitle "playchess.com"]
[Source "ChessBase"]
[SourceQuality "1"]
[TimeControl "40/5400+30:1800+30"]

1. d4 {[%emt 0:00:00]} Nf6 {[%emt 0:00:00]} 2. c3 {[%emt 0:00:34]} g6 {[%emt 0:00:30]} 3. Nf3 {[%emt 0:01:25]} Bg7 {[%emt 0:00:14]} 4. Bg5 {[%emt 0:00:33]} O-O {[%emt 0:01:34]} 5. Nbd2 {[%emt 0:01:02]} d6 {[%emt 0:03:04]} 6. e4 {[%emt 0:02:23]} h6 {[%emt 0:00:21]} 7. Bh4 {[%emt 0:02:56]} c5 {[%emt 0:04:32]} 8. dxc5 {[%emt 0:06:16]} dxc5 {[%emt 0:00:23]} 9. Qc2 {[%emt 0:00:12]} Nc6 {[%emt 0:01:42]} 10. Bc4 {[%emt 0:04:24]} Na5 {[%emt 0:10:17]} 11. Be2 {[%emt 0:04:27]} Be6 {[%emt 0:00:51]} 12. O-O {[%emt 0:01:06]} Nh5 {[%emt 0:02:54]} 13. Nb3 {[%emt 0:08:54]} Nxb3 {[%emt 0:05:51]} 14. axb3 {[%emt 0:00:08]} Nf4 {[%emt 0:13:39]} 15. Bc4 {[%emt 0:01:21]} Bxc4 {[%emt 0:00:58]} 16. bxc4 {[%emt 0:00:05]} Qc7 {[%emt 0:06:05]} 17. Bg3 {[%emt 0:01:49]} Rfd8 {[%emt 0:01:00]} 18. Rad1 {[%emt 0:07:01]} g5 19. h3 {[%emt 0:07:00]} Qc6 {[%emt 0:04:29]} 20. Rfe1 {[%emt 0:06:51]} Qb6 {[%emt 0:07:55]} 21. Bxf4 {[%emt 0:03:45]} gxf4 {[%emt 0:00:05]} 22. e5 {[%emt 0:04:11]} e6 {[%emt 0:03:01]} 23. Rb1 {[%emt 0:04:31]} a5 {[%emt 0:03:48]} 24. Qc1 {[%emt 0:01:26]} Rd3 {[%emt 0:04:51]} 25. Qxf4 {[%emt 0:00:06]} Rad8 {[%emt 0:00:02]} 26. Nh2 {[%emt 0:05:59]} h5 {[%emt 0:02:37]} 27. Qh4 {[%emt 0:03:37]} Qb3 {[%emt 0:00:20]} 28. Qxh5 {[%emt 0:04:53]} Qxc4 {[%emt 0:00:24]} 29. Nf3 {[%emt 0:00:56]} Qf4 {[%emt 0:00:47]} 30. Qg4 {[%emt 0:00:30]} Qxg4 {[%emt 0:00:53]} 31. hxg4 {[%emt 0:05:27]} R3d5 {[%emt 0:02:18]} 32. Kf1 {[%emt 0:03:34]} c4 {[%emt 0:03:32]} 33. Ra1 {[%emt 0:02:17]} Rb5 {[%emt 0:01:01]} 34. Re2 {[%emt 0:02:05]} Rc5 {[%emt 0:00:26]} 35. Ke1 {[%emt 0:00:56]} Kf8 {[%emt 0:01:40]} 36. Rd1 {[%emt 0:00:25]} Rxd1+ {[%emt 0:00:12]} 37. Kxd1 {[%emt 0:00:01]} b5 {[%emt 0:00:22]} 38. Kc2 {[%emt 0:00:36]} Ke7 {[%emt 0:00:31]} 39. Re4 {[%emt 0:00:53]} Kd7 {[%emt 0:01:23]} 40. Ng5 {[%emt 0:04:33]} Rxe5 {[%emt 0:00:30]} 41. Rxe5 {[%emt 0:30:30]} Bxe5 {[%emt 0:30:30]} 42. Nxf7 {[%emt 0:00:30]} Bf6 {[%emt 0:13:53]} 43. g5 {[%emt 0:00:00]} Ke7 {[%emt 0:00:00]} 44. Nd6 {[%emt 0:00:00]} Bxg5 {[%emt 0:00:00]} 45. Nxb5 {[%emt 0:00:00]} 1-0

[Event "18th Prague Open-A 2019"]
[Site "Prague"]
[Date "2019.01.13"]
[Round "4"]
[White "Pushkov, Nikolai"]
[Black "Mis, Mieszko"]
[Result "1/2-1/2"]
[ECO "A48"]
[WhiteElo "2309"]
[BlackElo "2242"]
[Annotator "NA"]
[PlyCount "66"]
[EventDate "2019.01.11"]
[EventType "swiss"]
[EventCountry "CZE"]
[SourceTitle "playchess.com"]
[Source "ChessBase"]
[SourceQuality "1"]
[TimeControl "40/5400+30:1800+30"]

1. d4 {[%emt 0:00:00]} Nf6 {[%emt 0:00:00]} 2. Nf3 {[%emt 0:00:00]} g6 {[%emt 0:00:00]} 3. c4 {[%emt 0:00:25]} Bg7 {[%emt 0:00:03]} 4. Nc3 {[%emt 0:00:32]} d5 {[%emt 0:00:07]} 5. cxd5 {[%emt 0:01:23]} Nxd5 {[%emt 0:00:06]} 6. Bd2 {[%emt 0:00:27]} O-O {[%emt 0:05:24]} 7. e4 {[%emt 0:00:23]} Nxc3 {[%emt 0:00:49]} 8. Bxc3 {[%emt 0:00:30]} c5 {[%emt 0:00:36]} 9. d5 {[%emt 0:01:25]} Bxc3+ {[%emt 0:05:20]} 10. bxc3 {[%emt 0:00:02]} e6 {[%emt 0:00:17]} 11. Be2 {[%emt 0:03:49]} exd5 {[%emt 0:01:46]} 12. exd5 {[%emt 0:00:04]} Nd7 {[%emt 0:02:42]} 13. O-O {[%emt 0:00:51]} Nf6 {[%emt 0:01:13]} 14. c4 {[%emt 0:00:39]} Re8 {[%emt 0:02:19]} 15. Bd3 {[%emt 0:04:32]} Bg4 {[%emt 0:02:51]} 16. h3 {[%emt 0:00:09]} Bxf3 {[%emt 0:00:04]} 17. Qxf3 {[%emt 0:00:03]} Qd6 {[%emt 0:00:32]} 18. Rfe1 {[%emt 0:02:31]} Kg7 {[%emt 0:02:51]} 19. Bf1 {[%emt 0:05:07]} b6 {[%emt 0:05:46]} 20. g3 {[%emt 0:00:53]} h5 {[%emt 0:03:46]} 21. h4 {[%emt 0:02:40]} Re5 {[%emt 0:23:13]} 22. Qc3 {[%emt 0:02:44]} Rae8 {[%emt 0:01:32]} 23. Rxe5 {[%emt 0:00:45]} Qxe5 {[%emt 0:04:03]} 24. Qxe5 {[%emt 0:00:20]} Rxe5 {[%emt 0:00:02]} 25. a4 {[%emt 0:00:18]} Re4 {[%emt 0:04:50]} 26. a5 {[%emt 0:00:29]} Nd7 {[%emt 0:08:49]} 27. axb6 {[%emt 0:00:40]} axb6 {[%emt 0:00:30]} 28. Rb1 {[%emt 0:03:24]} Ne5 {[%emt 0:05:00]} 29. Rxb6 {[%emt 0:01:22]} Nxc4 {[%emt 0:00:09]} 30. Bxc4 {[%emt 0:01:08]} Rxc4 {[%emt 0:00:03]} 31. Rc6 {[%emt 0:00:10]} Rc3 {[%emt 0:01:30]} 32. Kf1 {[%emt 0:01:00]} c4 {[%emt 0:00:24]} 33. Ke2 {[%emt 0:00:11]} Rd3 {[%emt 0:00:11]} 1/2-1/2

[Event "18th Prague Open-A 2019"]
[Site "Prague"]
[Date "2019.01.13"]
[Round "4"]
[White "Kushko, Dmitriy"]
[Black "Schmidt-Schaeffer, Sebastian"]
[Result "1/2-1/2"]
[ECO "A08"]
[WhiteElo "2270"]
[BlackElo "2350"]
[Annotator "NA"]
[PlyCount "65"]
[EventDate "2019.01.11"]
[EventType "swiss"]
[EventCountry "CZE"]
[SourceTitle "playchess.com"]
[Source "ChessBase"]
[SourceQuality "1"]
[TimeControl "40/5400+30:1800+30"]

1. Nf3 {[%emt 0:00:00]} d5 {[%emt 0:00:19]} 2. g3 {[%emt 0:00:00]} c5 {[%emt 0:02:47]} 3. Bg2 {[%emt 0:00:00]} Nf6 {[%emt 0:01:17]} 4. O-O {[%emt 0:00:00]} Nc6 {[%emt 0:03:33]} 5. d4 {[%emt 0:00:00]} cxd4 {[%emt 0:09:57]} 6. Nxd4 {[%emt 0:00:06]} Qb6 {[%emt 0:05:48]} 7. Nxc6 {[%emt 0:03:13]} bxc6 {[%emt 0:00:24]} 8. c4 {[%emt 0:00:15]} e6 {[%emt 0:09:53]} 9. Nc3 {[%emt 0:00:31]} Bb4 {[%emt 0:12:32]} 10. Be3 {[%emt 0:06:14]} Qa5 {[%emt 0:05:23]} 11. cxd5 {[%emt 0:00:41]} cxd5 {[%emt 0:02:35]} 12. Bd4 {[%emt 0:02:20]} O-O {[%emt 0:02:45]} 13. a3 {[%emt 0:02:16]} Be7 {[%emt 0:01:33]} 14. b4 {[%emt 0:01:28]} Qc7 {[%emt 0:06:13]} 15. Rc1 {[%emt 0:04:30]} Qb8 {[%emt 0:00:29]} 16. Na4 {[%emt 0:07:12]} e5 {[%emt 0:03:42]} 17. Bc5 {[%emt 0:01:36]} Bxc5 {[%emt 0:00:21]} 18. Nxc5 {[%emt 0:01:37]} Rd8 {[%emt 0:01:05]} 19. Qb3 {[%emt 0:04:56]} Bg4 {[%emt 0:04:31]} 20. Rfd1 {[%emt 0:01:46]} Bxe2 {[%emt 0:01:50]} 21. Rxd5 {[%emt 0:00:15]} Nxd5 {[%emt 0:01:09]} 22. Bxd5 {[%emt 0:00:08]} a5 {[%emt 0:06:22]} 23. Re1 {[%emt 0:04:34]} Bg4 {[%emt 0:06:36]} 24. Bxa8 {[%emt 0:04:11]} Qxa8 {[%emt 0:00:09]} 25. Qe3 {[%emt 0:00:35]} axb4 {[%emt 0:00:35]} 26. axb4 {[%emt 0:00:07]} Bh3 {[%emt 0:01:16]} 27. Qe4 {[%emt 0:00:12]} Qxe4 {[%emt 0:04:15]} 28. Nxe4 {[%emt 0:00:09]} f6 {[%emt 0:00:49]} 29. Nc5 {[%emt 0:00:41]} Bf5 {[%emt 0:02:05]} 30. Re3 {[%emt 0:00:29]} Bh3 {[%emt 0:01:15]} 31. Re1 {[%emt 0:01:04]} Bf5 {[%emt 0:00:13]} 32. Re3 {[%emt 0:00:17]} Bh3 {[%emt 0:00:11]} 33. Re1 {[%emt 0:00:21]} 1/2-1/2

[Event "18th Prague Open-A 2019"]
[Site "Prague"]
[Date "2019.01.16"]
[Round "7"]
[White "Krivonosov, Oleg"]
[Black "Abdulla, Murad"]
[Result "1-0"]
[ECO "A05"]
[WhiteElo "2390"]
[BlackElo "2263"]
[Annotator "NA"]
[PlyCount "101"]
[EventDate "2019.01.11"]
[EventType "swiss"]
[EventCountry "CZE"]
[SourceTitle "playchess.com"]
[Source "ChessBase"]
[SourceQuality "1"]
[TimeControl "40/5400+30:1800+30"]

1. Nf3 {[%emt 0:00:00]} Nf6 {[%emt 0:00:49]} 2. c4 {[%emt 0:00:00]} g6 {[%emt 0:00:10]} 3. Nc3 {[%emt 0:00:00]} d6 {[%emt 0:00:10]} 4. d4 {[%emt 0:00:00]} Bf5 {[%emt 0:00:07]} 5. d5 {[%emt 0:01:33]} Bg7 {[%emt 0:00:07]} 6. Nd4 {[%emt 0:00:05]} Bd7 {[%emt 0:00:08]} 7. e4 {[%emt 0:00:18]} O-O {[%emt 0:00:24]} 8. Be2 {[%emt 0:00:27]} e5 {[%emt 0:00:26]} 9. dxe6 {[%emt 0:01:00]} fxe6 {[%emt 0:00:20]} 10. O-O {[%emt 0:00:40]} e5 {[%emt 0:01:04]} 11. Nc2 {[%emt 0:00:54]} a5 {[%emt 0:03:03]} 12. Be3 {[%emt 0:01:44]} Na6 {[%emt 0:02:52]} 13. Qd2 {[%emt 0:04:30]} Kh8 {[%emt 0:08:55]} 14. Rad1 {[%emt 0:04:00]} Qe8 {[%emt 0:10:24]} 15. f3 {[%emt 0:02:09]} b6 {[%emt 0:07:08]} 16. Nd5 {[%emt 0:01:07]} Rf7 {[%emt 0:09:21]} 17. b3 {[%emt 0:02:55]} Nxd5 {[%emt 0:03:24]} 18. cxd5 {[%emt 0:01:03]} Nc5 {[%emt 0:01:34]} 19. Na3 {[%emt 0:04:11]} Bf6 {[%emt 0:05:36]} 20. Bc4 {[%emt 0:03:54]} Rf8 {[%emt 0:05:46]} 21. Rc1 {[%emt 0:03:01]} Qe7 {[%emt 0:08:06]} 22. Bb5 {[%emt 0:01:45]} Bc8 {[%emt 0:01:09]} 23. Nb1 {[%emt 0:03:37]} g5 {[%emt 0:01:39]} 24. g4 {[%emt 0:00:30]} h5 {[%emt 0:04:11]} 25. h3 {[%emt 0:00:11]} Kg7 {[%emt 0:02:00]} 26. Nc3 {[%emt 0:00:36]} Rh8 {[%emt 0:03:05]} 27. Kg2 {[%emt 0:00:31]} Kg6 {[%emt 0:02:10]} 28. Rh1 {[%emt 0:00:59]} Rh7 {[%emt 0:03:15]} 29. Ne2 {[%emt 0:01:01]} Bb7 {[%emt 0:04:44]} 30. Ng3 {[%emt 0:01:39]} h4 {[%emt 0:03:33]} 31. Nf5 {[%emt 0:00:31]} Qf8 {[%emt 0:00:44]} 32. Rc3 {[%emt 0:01:28]} Ra7 {[%emt 0:01:48]} 33. Rhc1 {[%emt 0:00:29]} Qa8 {[%emt 0:01:20]} 34. R1c2 {[%emt 0:01:15]} Qd8 {[%emt 0:02:44]} 35. Qe2 {[%emt 0:01:39]} Ba6 {[%emt 0:02:40]} 36. Bxa6 {[%emt 0:00:53]} Nxa6 {[%emt 0:00:09]} 37. a3 {[%emt 0:07:21]} Qd7 {[%emt 0:00:51]} 38. Bf2 {[%emt 0:00:41]} Rh8 {[%emt 0:00:26]} 39. Qe3 {[%emt 0:02:01]} Re8 {[%emt 0:00:57]} 40. Bxh4 {[%emt 0:02:31]} Rh8 {[%emt 0:00:42]} 41. Bg3 {[%emt 0:30:11]} Qh7 {[%emt 0:30:38]} 42. Kg1 {[%emt 0:00:15]} Nc5 {[%emt 0:00:00]} 43. Rh2 {[%emt 0:00:00]} Qd7 {[%emt 0:00:00]} 44. h4 {[%emt 0:00:00]} Raa8 {[%emt 0:00:00]} 45. h5+ {[%emt 0:00:00]} Kh7 {[%emt 0:00:00]} 46. Rhc2 {[%emt 0:00:00]} Qb5 {[%emt 0:00:00]} 47. Qe2 {[%emt 0:00:00]} Qxe2 {[%emt 0:00:00]} 48. Rxe2 {[%emt 0:00:00]} Rhb8 {[%emt 0:00:00]} 49. b4 {[%emt 0:00:00]} axb4 {[%emt 0:00:00]} 50. axb4 {[%emt 0:00:00]} Ra1+ {[%emt 0:00:00]} 51. Re1 {[%emt 0:00:00]} 1-0

[Event "18th Prague Open-A 2019"]
[Site "Prague"]
[Date "2019.01.16"]
[Round "7"]
[White "Low, Zhen Yu Cyrus"]
[Black "Gomes, Mary Ann"]
[Result "0-1"]
[ECO "B91"]
[WhiteElo "2385"]
[BlackElo "2296"]
[Annotator "NA"]
[PlyCount "114"]
[EventDate "2019.01.11"]
[EventType "swiss"]
[EventCountry "CZE"]
[SourceTitle "playchess.com"]
[Source "ChessBase"]
[SourceQuality "1"]
[TimeControl "40/5400+30:1800+30"]

1. e4 {[%emt 0:00:00]} c5 {[%emt 0:00:00]} 2. Nf3 {[%emt 0:00:00]} d6 {[%emt 0:00:00]} 3. d4 {[%emt 0:00:00]} cxd4 {[%emt 0:00:05]} 4. Nxd4 {[%emt 0:00:00]} Nf6 {[%emt 0:00:06]} 5. Nc3 {[%emt 0:00:00]} a6 {[%emt 0:00:05]} 6. g3 {[%emt 0:00:04]} e5 {[%emt 0:00:06]} 7. Nde2 {[%emt 0:00:05]} Be7 {[%emt 0:00:14]} 8. Bg2 {[%emt 0:00:16]} Be6 {[%emt 0:00:12]} 9. a4 {[%emt 0:01:44]} Nc6 {[%emt 0:00:06]} 10. Nd5 {[%emt 0:00:55]} Rc8 {[%emt 0:02:33]} 11. O-O {[%emt 0:06:06]} O-O {[%emt 0:01:15]} 12. b3 {[%emt 0:06:00]} Bxd5 {[%emt 0:08:59]} 13. exd5 {[%emt 0:00:17]} Nb8 {[%emt 0:00:06]} 14. a5 {[%emt 0:09:43]} Nfd7 {[%emt 0:01:57]} 15. c4 {[%emt 0:08:24]} f5 {[%emt 0:07:01]} 16. f4 {[%emt 0:07:19]} Bf6 {[%emt 0:00:35]} 17. fxe5 {[%emt 0:00:29]} Bxe5 {[%emt 0:00:22]} 18. Ra2 {[%emt 0:00:27]} b5 {[%emt 0:02:03]} 19. cxb5 {[%emt 0:08:41]} axb5 {[%emt 0:00:18]} 20. Qd3 {[%emt 0:00:35]} Nc5 {[%emt 0:06:10]} 21. Qxb5 {[%emt 0:00:34]} Nba6 {[%emt 0:00:18]} 22. Qc4 {[%emt 0:02:04]} Rb8 {[%emt 0:00:44]} 23. Ra3 {[%emt 0:05:45]} Rb4 {[%emt 0:07:03]} 24. Qc2 {[%emt 0:00:08]} Qb8 {[%emt 0:00:20]} 25. Rf3 {[%emt 0:06:31]} Ne4 {[%emt 0:02:37]} 26. Be3 {[%emt 0:03:35]} g6 {[%emt 0:02:19]} 27. Bf1 {[%emt 0:11:55]} Rc8 {[%emt 0:01:08]} 28. Qd1 {[%emt 0:02:56]} Bb2 {[%emt 0:01:46]} 29. Ra2 {[%emt 0:00:01]} Rxb3 {[%emt 0:01:07]} 30. Nd4 {[%emt 0:00:55]} Rxe3 {[%emt 0:04:04]} 31. Rxe3 {[%emt 0:05:18]} Rc1 {[%emt 0:03:49]} 32. Qd3 {[%emt 0:01:44]} Bxd4 {[%emt 0:01:44]} 33. Qxd4 {[%emt 0:00:03]} Rxf1+ {[%emt 0:06:49]} 34. Kxf1 {[%emt 0:02:17]} Qb1+ {[%emt 0:00:06]} 35. Re1 {[%emt 0:00:05]} Qxa2 {[%emt 0:00:11]} 36. Qb6 {[%emt 0:03:34]} Nd2+ {[%emt 0:11:31]} 37. Kg1 {[%emt 0:00:08]} Nf3+ {[%emt 0:00:05]} 38. Kf1 {[%emt 0:00:08]} Nxh2+ {[%emt 0:00:08]} 39. Kg1 {[%emt 0:00:01]} Nf3+ {[%emt 0:00:16]} 40. Kf1 {[%emt 0:00:01]} Qc4+ {[%emt 0:01:00]} 41. Re2 {[%emt 0:30:39]} Nc5 {[%emt 0:39:47]} 42. Kf2 {[%emt 0:10:22]} Ne5 {[%emt 0:07:11]} 43. a6 {[%emt 0:00:00]} Ng4+ {[%emt 0:00:00]} 44. Kf1 {[%emt 0:00:00]} Ne3+ {[%emt 0:00:00]} 45. Kf2 {[%emt 0:00:00]} Ne4+ {[%emt 0:00:00]} 46. Kf3 {[%emt 0:00:00]} Nxd5 {[%emt 0:00:00]} 47. Qb8+ {[%emt 0:00:00]} Kf7 {[%emt 0:00:00]} 48. Qb7+ {[%emt 0:00:00]} Nc7 {[%emt 0:00:00]} 49. Rb2 {[%emt 0:00:00]} Qf1+ {[%emt 0:02:42]} 50. Ke3 {[%emt 0:00:00]} Qg1+ {[%emt 0:00:54]} 51. Ke2 {[%emt 0:00:00]} Qf2+ {[%emt 0:00:20]} 52. Kd1 {[%emt 0:00:00]} Qf1+ {[%emt 0:00:09]} 53. Kc2 {[%emt 0:00:00]} Qe2+ {[%emt 0:00:10]} 54. Kc1 {[%emt 0:00:00]} Qe1+ {[%emt 0:00:07]} 55. Kc2 {[%emt 0:00:00]} Qd2+ {[%emt 0:00:15]} 56. Kb3 {[%emt 0:00:00]} Nc5+ {[%emt 0:00:12]} 57. Ka2 {[%emt 0:00:00]} Qa5+ {[%emt 0:00:09]} 0-1

[Event "18th Prague Open-A 2019"]
[Site "Prague"]
[Date "2019.01.16"]
[Round "7"]
[White "Gschnitzer, Oswald"]
[Black "Mis, Mieszko"]
[Result "1/2-1/2"]
[ECO "A04"]
[WhiteElo "2370"]
[BlackElo "2242"]
[Annotator "NA"]
[PlyCount "76"]
[EventDate "2019.01.11"]
[EventType "swiss"]
[EventCountry "CZE"]
[SourceTitle "playchess.com"]
[Source "ChessBase"]
[SourceQuality "1"]
[TimeControl "40/5400+30:1800+30"]

1. Nf3 {[%emt 0:00:00]} g6 {[%emt 0:00:00]} 2. c4 {[%emt 0:00:33]} Bg7 {[%emt 0:00:01]} 3. e4 {[%emt 0:00:37]} e5 {[%emt 0:00:25]} 4. d4 {[%emt 0:00:33]} exd4 {[%emt 0:00:08]} 5. Nxd4 {[%emt 0:00:04]} Nf6 {[%emt 0:00:16]} 6. Nc3 {[%emt 0:03:36]} O-O {[%emt 0:00:46]} 7. Be3 {[%emt 0:15:02]} c6 {[%emt 0:00:19]} 8. Be2 {[%emt 0:05:07]} Re8 {[%emt 0:06:10]} 9. Bf3 {[%emt 0:13:36]} d6 {[%emt 0:07:26]} 10. Nb3 {[%emt 0:05:56]} a5 {[%emt 0:07:55]} 11. Rc1 {[%emt 0:12:04]} Na6 {[%emt 0:15:34]} 12. O-O {[%emt 0:01:08]} a4 {[%emt 0:01:56]} 13. Nxa4 {[%emt 0:03:35]} Nxe4 {[%emt 0:03:30]} 14. Nb6 {[%emt 0:00:29]} Rb8 {[%emt 0:01:01]} 15. Nxc8 {[%emt 0:01:29]} Rxc8 {[%emt 0:01:54]} 16. Bd4 {[%emt 0:08:04]} Nac5 {[%emt 0:11:56]} 17. Re1 {[%emt 0:04:35]} Bxd4 {[%emt 0:07:48]} 18. Nxd4 {[%emt 0:03:26]} Qb6 {[%emt 0:01:16]} 19. Rc2 {[%emt 0:02:12]} Nf6 {[%emt 0:03:02]} 20. Rce2 {[%emt 0:01:01]} Rxe2 {[%emt 0:00:41]} 21. Rxe2 {[%emt 0:00:09]} Re8 {[%emt 0:05:15]} 22. Rxe8+ {[%emt 0:00:21]} Nxe8 {[%emt 0:00:13]} 23. Qd2 {[%emt 0:04:13]} Nf6 {[%emt 0:00:50]} 24. h4 {[%emt 0:02:42]} Nce4 {[%emt 0:03:50]} 25. Qe3 {[%emt 0:00:30]} d5 {[%emt 0:00:44]} 26. cxd5 {[%emt 0:00:08]} cxd5 {[%emt 0:00:07]} 27. b3 {[%emt 0:00:38]} Qc5 {[%emt 0:02:10]} 28. a4 {[%emt 0:01:07]} h5 {[%emt 0:00:43]} 29. g3 {[%emt 0:01:08]} Qa3 {[%emt 0:01:44]} 30. Kg2 {[%emt 0:01:32]} Qb2 {[%emt 0:00:27]} 31. Be2 {[%emt 0:02:24]} Ng4 {[%emt 0:02:45]} 32. Bxg4 {[%emt 0:00:34]} hxg4 {[%emt 0:00:02]} 33. Ne2 {[%emt 0:05:04]} Nd2 {[%emt 0:05:51]} 34. Nd4 {[%emt 0:00:39]} Qc1 {[%emt 0:01:11]} 35. h5 {[%emt 0:01:47]} Qf1+ {[%emt 0:05:39]} 36. Kh2 {[%emt 0:00:01]} Qh3+ {[%emt 0:00:43]} 37. Kg1 {[%emt 0:00:02]} Qf1+ {[%emt 0:00:26]} 38. Kh2 {[%emt 0:00:01]} Qh3+ {[%emt 0:00:27]} 1/2-1/2

[Event "18th Prague Open-A 2019"]
[Site "Prague"]
[Date "2019.01.16"]
[Round "7"]
[White "Lin, Yi"]
[Black "Kozak, Antoni"]
[Result "0-1"]
[ECO "A62"]
[WhiteElo "2359"]
[BlackElo "2236"]
[Annotator "NA"]
[PlyCount "72"]
[EventDate "2019.01.11"]
[EventType "swiss"]
[EventCountry "CZE"]
[SourceTitle "playchess.com"]
[Source "ChessBase"]
[SourceQuality "1"]
[TimeControl "40/5400+30:1800+30"]

1. d4 {[%emt 0:00:00]} Nf6 {[%emt 0:00:00]} 2. c4 {[%emt 0:00:00]} e6 {[%emt 0:00:00]} 3. g3 {[%emt 0:00:00]} c5 {[%emt 0:00:00]} 4. d5 {[%emt 0:00:43]} exd5 {[%emt 0:00:00]} 5. cxd5 {[%emt 0:00:06]} d6 {[%emt 0:00:00]} 6. Nc3 {[%emt 0:00:07]} g6 {[%emt 0:00:04]} 7. Bg2 {[%emt 0:00:04]} Bg7 {[%emt 0:00:06]} 8. Nf3 {[%emt 0:00:08]} O-O {[%emt 0:00:10]} 9. O-O {[%emt 0:00:06]} a6 {[%emt 0:00:02]} 10. a4 {[%emt 0:00:06]} Re8 {[%emt 0:00:04]} 11. Re1 {[%emt 0:04:29]} Nbd7 {[%emt 0:07:38]} 12. Bf4 {[%emt 0:08:44]} Qc7 {[%emt 0:06:58]} 13. Rc1 {[%emt 0:06:44]} Qb8 {[%emt 0:00:38]} 14. Qb3 {[%emt 0:03:22]} Ng4 {[%emt 0:10:16]} 15. a5 {[%emt 0:11:26]} b5 {[%emt 0:11:24]} 16. axb6 {[%emt 0:00:08]} Nxb6 {[%emt 0:00:21]} 17. h3 {[%emt 0:06:20]} Nf6 {[%emt 0:01:08]} 18. e4 {[%emt 0:03:42]} Nfd7 {[%emt 0:00:24]} 19. Rc2 {[%emt 0:16:56]} h6 {[%emt 0:08:20]} 20. Nd1 {[%emt 0:06:45]} a5 {[%emt 0:02:46]} 21. Bd2 {[%emt 0:09:27]} a4 {[%emt 0:02:03]} 22. Qa2 {[%emt 0:05:52]} Ba6 {[%emt 0:00:37]} 23. Bc3 {[%emt 0:00:41]} Nf6 {[%emt 0:04:24]} 24. Bxf6 {[%emt 0:09:07]} Bxf6 {[%emt 0:00:08]} 25. Bf1 {[%emt 0:00:32]} Bxf1 {[%emt 0:04:50]} 26. Kxf1 {[%emt 0:00:03]} Nd7 {[%emt 0:02:17]} 27. Re3 {[%emt 0:03:29]} Bd4 {[%emt 0:15:10]} 28. Nxd4 {[%emt 0:00:10]} cxd4 {[%emt 0:00:01]} 29. Re1 {[%emt 0:00:13]} Ne5 {[%emt 0:02:20]} 30. Kg2 {[%emt 0:00:18]} Nd3 {[%emt 0:00:17]} 31. Rf1 {[%emt 0:02:43]} Nb4 {[%emt 0:00:12]} 32. Qc4 {[%emt 0:00:03]} Nxc2 {[%emt 0:00:16]} 33. Qxc2 {[%emt 0:00:03]} Qb3 {[%emt 0:00:33]} 34. Qd2 {[%emt 0:01:03]} Rxe4 {[%emt 0:00:26]} 35. f3 {[%emt 0:01:39]} Re5 {[%emt 0:03:58]} 36. Nf2 {[%emt 0:00:18]} Rc8 {[%emt 0:00:20]} 0-1

[Event "18th Prague Open-A 2019"]
[Site "Prague"]
[Date "2019.01.16"]
[Round "7"]
[White "Szpar, Milosz"]
[Black "Sindler, Michal"]
[Result "1/2-1/2"]
[ECO "B96"]
[WhiteElo "2339"]
[BlackElo "2221"]
[Annotator "NA"]
[PlyCount "55"]
[EventDate "2019.01.11"]
[EventType "swiss"]
[EventCountry "CZE"]
[SourceTitle "playchess.com"]
[Source "ChessBase"]
[SourceQuality "1"]
[TimeControl "40/5400+30:1800+30"]

1. e4 {[%emt 0:00:00]} c5 {[%emt 0:00:00]} 2. Nf3 {[%emt 0:00:00]} d6 {[%emt 0:00:00]} 3. d4 {[%emt 0:00:00]} cxd4 {[%emt 0:00:00]} 4. Nxd4 {[%emt 0:00:00]} Nf6 {[%emt 0:00:02]} 5. Nc3 {[%emt 0:00:04]} a6 {[%emt 0:03:19]} 6. Bg5 {[%emt 0:00:31]} e6 {[%emt 0:01:49]} 7. f4 {[%emt 0:00:47]} h6 {[%emt 0:02:43]} 8. Bh4 {[%emt 0:00:13]} Be7 {[%emt 0:10:24]} 9. Qf3 {[%emt 0:02:03]} Nbd7 {[%emt 0:01:13]} 10. O-O-O {[%emt 0:02:15]} Qc7 {[%emt 0:03:13]} 11. f5 {[%emt 0:18:49]} Ne5 {[%emt 0:08:31]} 12. Qh3 {[%emt 0:01:52]} Nc6 {[%emt 0:07:32]} 13. g4 {[%emt 0:06:55]} Nxd4 {[%emt 0:08:19]} 14. Rxd4 {[%emt 0:00:13]} Bd7 {[%emt 0:03:51]} 15. Be2 {[%emt 0:05:26]} b5 {[%emt 0:07:17]} 16. Rhd1 {[%emt 0:02:36]} e5 {[%emt 0:17:22]} 17. Bxf6 {[%emt 0:02:11]} Bxf6 {[%emt 0:01:06]} 18. Rxd6 {[%emt 0:01:50]} Bc6 {[%emt 0:00:57]} 19. R6d3 {[%emt 0:03:18]} Rc8 {[%emt 0:02:17]} 20. a3 {[%emt 0:12:15]} a5 {[%emt 0:00:57]} 21. Na2 {[%emt 0:01:52]} O-O {[%emt 0:01:37]} 22. Rc3 {[%emt 0:04:33]} Qb7 {[%emt 0:00:33]} 23. Bd3 {[%emt 0:02:31]} b4 {[%emt 0:02:40]} 24. axb4 {[%emt 0:01:52]} axb4 {[%emt 0:00:19]} 25. Rb3 {[%emt 0:00:40]} Be7 {[%emt 0:03:51]} 26. f6 {[%emt 0:03:10]} Bxf6 {[%emt 0:00:36]} 27. Nxb4 {[%emt 0:00:15]} Bxe4 {[%emt 0:00:58]} 28. Re1 {[%emt 0:11:04]} 1/2-1/2

[Event "18th Prague Open-A 2019"]
[Site "Prague"]
[Date "2019.01.16"]
[Round "7"]
[White "Mishuchkov, Nikolai M."]
[Black "Chernyak, Viktoria"]
[Result "1-0"]
[ECO "D02"]
[WhiteElo "2308"]
[BlackElo "2186"]
[Annotator "NA"]
[PlyCount "41"]
[EventDate "2019.01.11"]
[EventType "swiss"]
[EventCountry "CZE"]
[SourceTitle "playchess.com"]
[Source "ChessBase"]
[SourceQuality "1"]
[TimeControl "40/5400+30:1800+30"]

1. d4 {[%emt 0:00:00]} d5 {[%emt 0:00:00]} 2. Nf3 {[%emt 0:00:00]} Nf6 {[%emt 0:00:00]} 3. c4 {[%emt 0:00:00]} e6 {[%emt 0:00:07]} 4. e3 {[%emt 0:00:00]} Be7 {[%emt 0:00:46]} 5. Bd3 {[%emt 0:00:08]} O-O {[%emt 0:00:54]} 6. b3 {[%emt 0:00:11]} dxc4 {[%emt 0:02:30]} 7. bxc4 {[%emt 0:01:28]} c5 {[%emt 0:00:03]} 8. O-O {[%emt 0:00:12]} Nc6 {[%emt 0:01:58]} 9. Bb2 {[%emt 0:03:14]} b6 {[%emt 0:02:25]} 10. Nc3 {[%emt 0:13:20]} cxd4 {[%emt 0:03:28]} 11. exd4 {[%emt 0:00:22]} Bb7 {[%emt 0:04:19]} 12. a3 {[%emt 0:05:01]} Rc8 {[%emt 0:04:00]} 13. Qe2 {[%emt 0:02:19]} Na5 {[%emt 0:16:50]} 14. Ne5 {[%emt 0:37:19]} Qc7 {[%emt 0:10:30]} 15. Nb5 {[%emt 0:02:32]} Qb8 {[%emt 0:00:22]} 16. d5 {[%emt 0:05:19]} exd5 {[%emt 0:07:45]} 17. cxd5 {[%emt 0:04:00]} Rfe8 {[%emt 0:06:38]} 18. Rad1 {[%emt 0:01:13]} Rcd8 {[%emt 0:06:44]} 19. Ng4 {[%emt 0:09:17]} Nxg4 {[%emt 0:02:19]} 20. Qxg4 {[%emt 0:00:07]} Bf8 {[%emt 0:00:28]} 21. Qf5 {[%emt 0:01:04]} 1-0